bitfinex/quotes_BTCUSD_20250709
["timestamp","ask_amount","ask_price","bid_price","bid_amount"]
[1752064656837,0.02935853,109650.0,109640.0,1.99008461]
[1752064657088,0.03847837,109650.0,109640.0,1.99008461]
[1752064657512,0.03847837,109650.0,109640.0,1.74109563]
[1752064657712,0.04759829,109650.0,109640.0,1.74109563]
[1752064658092,0.22087757,109650.0,109640.0,1.48298598]
[1752064658269,0.22087757,109650.0,109640.0,1.74109563]
[1752064658445,0.02935844,109650.0,109640.0,1.75021588]
[1752064658657,0.03847828,109650.0,109640.0,1.75021605]
[1752064659016,0.03847828,109650.0,109640.0,1.74109563]
[1752064659217,0.03847828,109650.0,109640.0,1.75021605]
[1752064659536,0.03847828,109650.0,109640.0,1.74109563]
[1752064660177,0.03847828,109650.0,109640.0,1.75021605]
[1752064660405,0.03847828,109650.0,109640.0,1.74109563]
[1752064660694,0.22087682,109650.0,109640.0,1.73197513]
[1752064660912,0.22087682,109650.0,109640.0,1.74109563]
[1752064661062,0.22087682,109650.0,109640.0,1.73197513]
[1752064661266,0.21175756,109650.0,109640.0,1.48298598]
[1752064661480,0.21175756,109650.0,109640.0,1.72285454]
[1752064662104,0.21175756,109650.0,109640.0,1.73197513]
[1752064665169,0.21175756,109650.0,109640.0,1.74109563]
[1752064665381,0.21175756,109650.0,109640.0,1.73197513]
[1752064665584,0.21175756,109650.0,109640.0,1.74109563]
[1752064665887,0.21175756,109650.0,109640.0,1.73197513]
[1752064666322,0.21175756,109650.0,109640.0,1.48298598]
[1752064666512,0.21175756,109650.0,109640.0,1.73197513]
[1752064666867,0.21175756,109650.0,109640.0,1.50122707]
[1752064667078,0.21175756,109650.0,109640.0,1.74109563]
[1752064667855,0.21175756,109650.0,109640.0,1.73197513]
[1752064668059,0.02935902,109650.0,109640.0,1.75021605]
[1752064668265,0.02935902,109650.0,109640.0,1.73197513]
[1752064669233,0.02935902,109650.0,109640.0,1.74109563]
[1752064669976,0.02935902,109650.0,109640.0,1.73197513]
[1752064670339,0.21175756,109650.0,109640.0,1.48298606]
[1752064670539,0.21175756,109650.0,109640.0,1.70627529]
[1752064670776,0.0293591,109650.0,109640.0,1.7245163]
[1752064670984,0.21175764,109650.0,109640.0,1.70627529]
[1752064671189,0.02023918,109650.0,109640.0,1.70627529]
[1752064671399,0.21175748,109650.0,109640.0,1.74159588]
[1752064671799,0.01111926,109650.0,109640.0,1.75071588]
[1752064672000,0.03847819,109650.0,109640.0,1.73247529]
[1752064672202,0.03847819,109650.0,109640.0,1.74159579]
[1752064672417,0.22087673,109650.0,109640.0,1.73247529]
[1752064672625,0.22087673,109650.0,109640.0,1.74159588]
[1752064673382,0.22087673,109650.0,109640.0,1.73247529]
[1752064674292,0.21175747,109650.0,109640.0,1.72335462]
[1752064674502,0.21175747,109650.0,109640.0,1.73247529]
[1752064674699,0.21175747,109650.0,109640.0,1.74159588]
[1752064675101,0.21175747,109650.0,109640.0,1.73247529]
[1752064675305,0.21175747,109650.0,109640.0,1.74159588]
[1752064676700,0.02023909,109650.0,109640.0,1.75071638]
[1752064676867,0.02935893,109650.0,109640.0,1.74159588]
[1752064677038,0.02935893,109650.0,109640.0,1.75071638]
[1752064677271,0.21175747,109650.0,109640.0,1.74159588]
[1752064677571,0.21175747,109650.0,109640.0,1.75071638]
[1752064677768,0.21175747,109650.0,109640.0,1.51084782]
[1752064677973,0.21175747,109650.0,109640.0,1.75071638]
[1752064678178,0.02935893,109650.0,109640.0,1.7598368]
[1752064678345,0.02935893,109650.0,109640.0,1.75071638]
[1752064679127,0.21175747,109650.0,109640.0,1.50172732]
[1752064679326,0.21175747,109650.0,109640.0,1.74159588]
[1752064680251,0.22087739,109650.0,109640.0,1.75071638]
[1752064680583,0.22087739,109650.0,109640.0,1.74159588]
[1752064682356,0.22087739,109650.0,109640.0,1.75071638]
[1752064682555,0.03847885,109650.0,109640.0,1.7598368]
[1752064682791,0.02935893,109650.0,109640.0,1.75071638]
[1752064683114,0.02935893,109650.0,109640.0,1.7598368]
[1752064683317,0.02935893,109650.0,109640.0,1.75071638]
[1752064683519,0.22087739,109650.0,109640.0,1.75071638]
[1752064683946,0.02935893,109650.0,109640.0,1.7598368]
[1752064684686,0.02935893,109650.0,109640.0,1.75071638]
[1752064685247,0.03847885,109650.0,109640.0,1.75071638]
[1752064685452,0.02935893,109650.0,109640.0,1.75071638]
[1752064685634,0.02935893,109650.0,109640.0,1.7598368]
[1752064686328,0.02023909,109650.0,109640.0,1.75983639]
[1752064686508,0.02935893,109650.0,109640.0,1.75071605]
[1752064687471,0.02935893,109650.0,109640.0,1.74159563]
[1752064688057,0.02023909,109650.0,109640.0,1.75071605]
[1752064688258,0.02935885,109650.0,109640.0,1.75071605]
[1752064688474,0.02935885,109650.0,109640.0,1.75983639]
[1752064688673,0.02023859,109650.0,109640.0,1.75983589]
[1752064688874,0.03847786,109650.0,109640.0,1.75071572]
[1752064689106,0.03847786,109650.0,109640.0,1.73247496]
[1752064689548,0.04759778,109650.0,109640.0,1.73247496]
[1752064689953,0.04759778,109650.0,109640.0,1.72335446]
[1752064690226,0.22999632,109650.0,109640.0,1.72335446]
[1752064690507,0.03847786,109650.0,109640.0,1.73247496]
[1752064690716,0.04759778,109650.0,109640.0,1.73247496]
[1752064691153,0.04759778,109650.0,109640.0,1.74159538]
[1752064691356,0.03847786,109650.0,109640.0,1.74159538]
[1752064691570,0.0475977,109650.0,109640.0,1.74159538]
[1752064691707,0.0475977,109650.0,109640.0,1.73247496]
[1752064692167,0.0475977,109650.0,109640.0,1.74159538]
[1752064692663,0.0475977,109650.0,109640.0,1.73247496]
[1752064693240,0.0475977,109650.0,109640.0,1.74159538]
[1752064693628,0.0475977,109650.0,109640.0,1.73247496]
[1752064694256,0.03847786,109650.0,109640.0,1.75071572]
[1752064694455,0.03847786,109650.0,109640.0,1.74159538]
[1752064694663,0.04759778,109650.0,109640.0,1.74159538]
[1752064694827,0.04759778,109650.0,109640.0,1.73247496]
[1752064695461,0.04759778,109650.0,109640.0,1.72335446]
[1752064695462,0.22999632,109650.0,109640.0,1.72335446]
[1752064695720,0.22999632,109650.0,109640.0,1.70627496]
[1752064696075,0.04759778,109650.0,109640.0,1.71539538]
[1752064696552,0.03847786,109650.0,109640.0,1.71539538]
[1752064696787,0.04759778,109650.0,109640.0,1.70627496]
[1752064697134,0.04759778,109650.0,109640.0,1.4664064]
[1752064697336,0.04759778,109650.0,109640.0,1.71539538]
[1752064697945,0.03847786,109650.0,109640.0,1.71539538]
[1752064698351,0.03847786,109650.0,109640.0,1.70627496]
[1752064698761,0.03847786,109650.0,109640.0,1.71539538]
[1752064698993,0.04759778,109650.0,109640.0,1.4664064]
[1752064699180,0.04759778,109650.0,109640.0,1.47552682]
[1752064699416,0.002,109650.0,109640.0,1.96438428]
[1752064699625,0.02023859,109650.0,109640.0,1.99970445]
[1752064699828,0.02935818,109650.0,109640.0,1.95896002]
[1752064700057,0.02023859,109650.0,109640.0,1.95896002]
[1752064700258,0.03847786,109650.0,109640.0,1.99972023]
[1752064700504,0.03847769,109650.0,109640.0,1.51086252]
[1752064700858,0.03847769,109650.0,109640.0,1.99059964]
[1752064701201,0.03847769,109650.0,109640.0,1.99971981]
[1752064701964,0.03847769,109650.0,109640.0,1.99059964]
[1752064702173,0.0293581,109650.0,109640.0,1.99059964]
[1752064702379,0.0293581,109650.0,109640.0,1.98147939]
[1752064702603,0.0293581,109650.0,109640.0,1.51086252]
[1752064702843,0.0293581,109650.0,109640.0,1.99971981]
[1752064703201,0.02023859,109650.0,109640.0,1.99971981]
[1752064703818,0.02935826,109650.0,109640.0,1.99971981]
[1752064704212,0.03847785,109650.0,109640.0,1.99059964]
[1752064704410,0.03847785,109650.0,109640.0,1.98147939]
[1752064704669,0.03847785,109650.0,109640.0,1.99059956]
[1752064704872,0.03847785,109650.0,109640.0,1.99059964]
[1752064705049,0.03847785,109650.0,109640.0,1.51998269]
[1752064705238,0.03847785,109650.0,109640.0,1.99971981]
[1752064705405,0.02935818,109650.0,109640.0,1.99971981]
[1752064705603,0.02023859,109650.0,109640.0,1.99971981]
[1752064705830,0.02935818,109650.0,109640.0,1.99971981]
[1752064706035,0.0293581,109650.0,109640.0,1.99971981]
[1752064706483,0.01111917,109650.0,109640.0,1.95895968]
[1752064706720,0.01111934,109650.0,109640.0,1.95895968]
[1752064707029,0.01111917,109650.0,109640.0,1.95895968]
[1752064707242,0.02023851,109650.0,109640.0,1.95895968]
[1752064707416,0.002,109650.0,109640.0,1.95895968]
[1752064707688,0.01011926,109650.0,109640.0,1.95895968]
[1752064708025,0.00911926,109650.0,109640.0,1.95895968]
[1752064708220,0.00911926,109650.0,109640.0,2.13179361]
[1752064709043,0.00911926,109650.0,109640.0,2.05039661]
[1752064710109,0.21628045,109660.0,109640.0,2.03215536]
[1752064710363,0.00911917,109650.0,109640.0,1.6497268]
[1752064710617,0.00911917,109650.0,109640.0,1.7918468]
[1752064711081,0.21628045,109660.0,109650.0,0.19151846]
[1752064711273,0.21628045,109660.0,109650.0,0.39260694]
[1752064711477,0.21728045,109660.0,109650.0,0.37436734]
[1752064711728,0.21728045,109660.0,109650.0,0.6142359]
[1752064711934,0.21728045,109660.0,109650.0,0.62335574]
[1752064712389,0.20916178,109660.0,109650.0,0.36524742]
[1752064712596,0.20916178,109660.0,109650.0,0.60511598]
[1752064712804,0.20816178,109660.0,109650.0,0.37436734]
[1752064713022,0.20816178,109660.0,109650.0,0.6142359]
[1752064713228,0.20916178,109660.0,109650.0,0.61423102]
[1752064713426,0.20916178,109660.0,109650.0,0.62335086]
[1752064713600,0.20916178,109660.0,109650.0,0.6051111]
[1752064714030,0.20916178,109660.0,109650.0,0.4629911]
[1752064714253,0.20004286,109660.0,109650.0,0.6051111]
[1752064714650,0.20004286,109660.0,109650.0,0.5643871]
[1752064716556,0.20004286,109660.0,109650.0,0.28059256]
[1752064716761,0.21712377,109660.0,109650.0,0.38194856]
[1752064716971,0.21712377,109660.0,109650.0,0.14208]
[1752064717172,0.21712377,109660.0,109650.0,0.38194856]
[1752064717418,0.21712377,109660.0,109650.0,0.5643471]
[1752064717617,0.45699233,109660.0,109650.0,0.5643471]
[1752064718174,0.00911984,109650.0,109640.0,1.39045204]
[1752064718379,0.0273591,109650.0,109640.0,1.08346026]
[1752064718586,0.21887756,109650.0,109640.0,1.30508773]
[1752064718794,0.20975797,109650.0,109640.0,1.30508773]
[1752064719612,0.20975797,109650.0,109640.0,1.35943344]
[1752064719771,0.20975797,109650.0,109640.0,1.30508773]
[1752064720174,0.20975797,109650.0,109640.0,1.35943344]
[1752064720403,0.2006383,109650.0,109640.0,1.11956488]
[1752064720575,0.2006383,109650.0,109640.0,1.06521917]
[1752064720947,0.2006383,109650.0,109640.0,1.30508773]
[1752064721731,0.2006383,109650.0,109640.0,1.16300773]
[1752064721947,0.2006383,109650.0,109640.0,1.06521917]
[1752064722158,0.2006383,109650.0,109640.0,1.30508773]
[1752064723433,0.2263383,109650.0,109640.0,1.30508773]
[1752064724037,0.2263383,109650.0,109640.0,1.06521917]
[1752064724232,0.2544383,109650.0,109640.0,1.21735344]
[1752064724456,0.24531846,109650.0,109640.0,1.35939344]
[1752064724785,0.24531846,109650.0,109640.0,1.30504773]
[1752064725341,0.24531846,109650.0,109640.0,1.35939344]
[1752064725550,0.24531846,109650.0,109640.0,1.30504773]
[1752064725984,0.19151846,109650.0,109640.0,1.30504773]
[1752064726976,0.19151846,109650.0,109640.0,1.31416848]
[1752064727194,0.19151846,109650.0,109640.0,1.30504773]
[1752064728813,0.21791846,109650.0,109640.0,1.30504773]
[1752064729233,0.21791846,109650.0,109640.0,1.30506063]
[1752064729711,0.21791846,109650.0,109640.0,1.06519207]
[1752064729920,0.21791846,109650.0,109640.0,1.30506063]
[1752064733363,0.21791846,109650.0,109640.0,1.06519207]
[1752064733573,0.24411846,109650.0,109640.0,1.36519207]
[1752064733781,0.24411846,109650.0,109640.0,1.60506063]
[1752064734434,0.24411846,109650.0,109640.0,1.16302063]
[1752064734646,0.19151846,109650.0,109640.0,1.31414138]
[1752064734851,0.19151846,109650.0,109640.0,1.07427282]
[1752064735073,0.19151846,109650.0,109640.0,1.31414138]
[1752064736160,0.19151846,109650.0,109640.0,1.30502063]
[1752064736356,0.19151846,109650.0,109640.0,1.31414138]
[1752064737166,0.19151846,109650.0,109640.0,1.30502063]
[1752064738211,0.19151846,109650.0,109640.0,1.31414138]
[1752064738568,0.19151846,109650.0,109640.0,1.61414138]
[1752064738773,0.19151846,109650.0,109640.0,1.31414138]
[1752064739126,0.19151846,109650.0,109640.0,1.06515207]
[1752064739302,0.19151846,109650.0,109640.0,1.32326205]
[1752064739503,0.19151846,109650.0,109640.0,1.06515207]
[1752064739712,0.19151846,109650.0,109640.0,1.31414138]
[1752064739914,0.19151846,109650.0,109640.0,1.32326205]
[1752064740515,0.19151846,109650.0,109640.0,1.07427282]
[1752064740712,0.19151846,109650.0,109640.0,1.31414138]
[1752064740923,0.19151846,109650.0,109640.0,1.08339341]
[1752064741122,0.20063813,109650.0,109640.0,1.32326197]
[1752064741343,0.20063813,109650.0,109640.0,1.32326205]
[1752064741689,0.01823959,109650.0,109640.0,1.35854255]
[1752064741913,0.01823959,109650.0,109640.0,1.38484255]
[1752064742118,0.20063813,109650.0,109640.0,1.24288264]
[1752064742403,0.20063813,109650.0,109640.0,1.44830885]
[1752064743119,0.01823959,109650.0,109640.0,1.44830885]
[1752064743551,0.01823959,109650.0,109640.0,1.73918835]
[1752064743769,0.19151821,109650.0,109640.0,1.43918835]
[1752064744057,0.20975755,109650.0,109640.0,1.43918835]
[1752064745632,0.20975755,109650.0,109640.0,1.38668835]
[1752064745842,0.20975755,109650.0,109640.0,1.14681979]
[1752064746045,0.02735901,109650.0,109640.0,1.39580877]
[1752064746251,0.02735893,109650.0,109640.0,1.39580877]
[1752064746471,0.02735893,109650.0,109640.0,1.39580885]
[1752064746687,0.20975747,109650.0,109640.0,0.99573904]
[1752064746903,0.21887739,109650.0,109640.0,1.3866481]
[1752064747350,0.03647885,109650.0,109640.0,1.39576852]
[1752064747490,0.03647885,109650.0,109640.0,1.3866481]
[1752064747695,0.03647885,109650.0,109640.0,1.42296852]
[1752064747895,0.02735893,109650.0,109640.0,1.42296852]
[1752064748152,0.02735893,109650.0,109640.0,1.4138481]
[1752064748577,0.02735893,109650.0,109640.0,1.72296852]
[1752064748782,0.01823909,109650.0,109640.0,1.42296852]
[1752064748981,0.02735826,109650.0,109640.0,1.38223162]
[1752064749200,0.02735826,109650.0,109640.0,1.16826306]
[1752064749358,0.02735826,109650.0,109640.0,1.41725196]
[1752064749579,0.02735826,109650.0,109640.0,1.45800164]
[1752064749751,0.02735826,109650.0,109640.0,1.44888139]
[1752064750207,0.0364781,109650.0,109640.0,1.43976105]
[1752064750360,0.0364781,109650.0,109640.0,1.44888139]
[1752064750963,0.03647802,109650.0,109640.0,1.44888139]
[1752064751101,0.03647802,109650.0,109640.0,1.45800164]
[1752064751302,0.03647802,109650.0,109640.0,1.44888139]
[1752064751508,0.02735826,109650.0,109640.0,1.45800164]
[1752064751937,0.02735826,109650.0,109640.0,1.16826273]
[1752064752160,0.0364781,109650.0,109640.0,1.40813129]
[1752064752346,0.02735826,109650.0,109640.0,1.40813129]
[1752064752729,0.0364781,109650.0,109640.0,1.39901095]
[1752064752928,0.0364781,109650.0,109640.0,1.44887743]
[1752064753147,0.0364781,109650.0,109640.0,1.43975709]
[1752064753549,0.02735826,109650.0,109640.0,1.73975709]
[1752064753750,0.0364781,109650.0,109640.0,1.73975709]
[1752064753990,0.0364781,109650.0,109640.0,1.43975709]
[1752064754147,0.02735826,109650.0,109640.0,1.43975709]
[1752064754352,0.02735826,109650.0,109640.0,1.4579976]
[1752064754553,0.02735826,109650.0,109640.0,1.45799768]
[1752064754747,0.02735826,109650.0,109640.0,1.44887743]
[1752064755214,0.02735826,109650.0,109640.0,1.45799768]
[1752064755338,0.02735818,109650.0,109640.0,1.45799726]
[1752064755550,0.03647785,109650.0,109640.0,1.44887709]
[1752064755761,0.04559769,109650.0,109640.0,1.43975684]
[1752064755987,0.03647785,109650.0,109640.0,1.19988828]
[1752064756191,0.03647785,109650.0,109640.0,1.43975684]
[1752064756644,0.03647785,109650.0,109640.0,1.44887709]
[1752064757387,0.04559769,109650.0,109640.0,1.43975684]
[1752064757592,0.03647785,109650.0,109640.0,1.43975684]
[1752064757826,0.04559761,109650.0,109640.0,1.43975684]
[1752064758253,0.04559761,109650.0,109640.0,1.44887709]
[1752064758719,0.03647785,109650.0,109640.0,1.44887709]
[1752064759403,0.03647785,109650.0,109640.0,1.43975684]
[1752064759619,0.03647785,109650.0,109640.0,1.19988828]
[1752064759835,0.04559761,109650.0,109640.0,1.43975684]
[1752064760048,0.02735818,109650.0,109640.0,1.43975684]
[1752064760266,0.02735818,109650.0,109640.0,1.3990107]
[1752064760267,0.03647794,109650.0,109640.0,1.3990107]
[1752064760621,0.03647794,109650.0,109640.0,1.43063334]
[1752064761237,0.02735818,109650.0,109640.0,1.43975368]
[1752064761525,0.02735818,109650.0,109640.0,1.3990107]
[1752064761631,0.03647794,109650.0,109640.0,1.3990107]
[1752064761845,0.03647794,109650.0,109640.0,1.38989036]
[1752064762056,0.03647785,109650.0,109640.0,1.39901061]
[1752064762261,0.03647785,109650.0,109640.0,1.43975225]
[1752064762469,0.03647785,109650.0,109640.0,1.43975208]
[1752064762677,0.02735818,109650.0,109640.0,1.43975208]
[1752064763510,0.02735818,109650.0,109640.0,1.43063191]
[1752064763712,0.02735818,109650.0,109640.0,1.44887233]
[1752064763911,0.02735818,109650.0,109640.0,1.20900377]
[1752064764117,0.02735818,109650.0,109640.0,1.43975216]
[1752064764316,0.03647794,109650.0,109640.0,1.73975216]
[1752064764789,0.03647785,109650.0,109640.0,1.73975225]
[1752064765101,0.04559769,109650.0,109640.0,1.46486335]
[1752064765303,0.04559761,109650.0,109640.0,1.43766335]
[1752064765509,0.04559836,109650.0,109640.0,1.67753224]
[1752064765722,0.04559828,109650.0,109640.0,1.68665266]
[1752064765929,0.04559828,109650.0,109640.0,1.53561224]
[1752064766160,0.03647844,109650.0,109640.0,1.68657266]
[1752064766874,0.03647844,109650.0,109640.0,1.67745224]
[1752064767084,0.03647844,109650.0,109640.0,1.68657266]
[1752064767486,0.03647844,109650.0,109640.0,1.67745224]
[1752064767487,0.04559836,109650.0,109640.0,1.67745224]
[1752064767776,0.04559836,109650.0,109640.0,1.29574368]
[1752064767976,0.04559836,109650.0,109640.0,1.67741224]
[1752064768411,0.04559836,109650.0,109640.0,1.68653266]
[1752064768690,0.04559828,109650.0,109640.0,1.67741224]
[1752064768894,0.03647844,109650.0,109640.0,1.68653266]
[1752064769101,0.04559836,109650.0,109640.0,1.67741224]
[1752064769333,0.03647844,109650.0,109640.0,1.68653266]
[1752064769512,0.03647844,109650.0,109640.0,1.695653]
[1752064769723,0.03647844,109650.0,109640.0,1.68653266]
[1752064770377,0.04559836,109650.0,109640.0,1.67741224]
[1752064770580,0.04559828,109650.0,109640.0,1.68653266]
[1752064772294,0.2188774,109650.0,109640.0,1.42842318]
[1752064772537,0.2188774,109650.0,109640.0,1.67741224]
[1752064773175,0.2188774,109650.0,109640.0,1.44666427]
[1752064773377,0.03647886,109650.0,109640.0,1.69565325]
[1752064773568,0.03647886,109650.0,109640.0,1.68653283]
[1752064774628,0.03647886,109650.0,109640.0,1.70477359]
[1752064774842,0.03647886,109650.0,109640.0,1.69565325]
[1752064775047,0.03647886,109650.0,109640.0,1.68653283]
[1752064775253,0.03647886,109650.0,109640.0,1.69565325]
[1752064775655,0.03647886,109650.0,109640.0,1.44666427]
[1752064775898,0.04559878,109650.0,109640.0,1.44666427]
[1752064776102,0.22799732,109650.0,109640.0,1.68653283]
[1752064776645,0.02735902,109650.0,109640.0,1.44666427]
[1752064776847,0.03647894,109650.0,109640.0,1.69565325]
[1752064777065,0.03647894,109650.0,109640.0,1.68653283]
[1752064777260,0.21887748,109650.0,109640.0,1.68653283]
[1752064777463,0.21887748,109650.0,109640.0,1.67741233]
[1752064777693,0.21887748,109650.0,109640.0,1.68653283]
[1752064778046,0.21887748,109650.0,109640.0,1.43754377]
[1752064778242,0.21887748,109650.0,109640.0,1.67741233]
[1752064778445,0.21887748,109650.0,109640.0,1.68653283]
[1752064778866,0.21887748,109650.0,109640.0,1.67741233]
[1752064779272,0.21887748,109650.0,109640.0,1.67741241]
[1752064779543,0.21887748,109650.0,109640.0,1.686533]
[1752064780054,0.21887748,109650.0,109640.0,1.44666444]
[1752064780252,0.21887748,109650.0,109640.0,1.686533]
[1752064780453,0.03647894,109650.0,109640.0,1.6956535]
[1752064780809,0.21887748,109650.0,109640.0,1.6956535]
[1752064781056,0.03647894,109650.0,109640.0,1.70477392]
[1752064781257,0.03647894,109650.0,109640.0,1.6956535]
[1752064781436,0.21887748,109650.0,109640.0,1.6956535]
[1752064782120,0.21887748,109650.0,109640.0,1.686533]
[1752064782327,0.21887748,109650.0,109640.0,1.6956535]
[1752064782530,0.21887748,109650.0,109640.0,1.686533]
[1752064782975,0.03647894,109650.0,109640.0,1.70477392]
[1752064783211,0.02735902,109650.0,109640.0,1.69565342]
[1752064783454,0.03647894,109650.0,109640.0,1.69565342]
[1752064783644,0.03647894,109650.0,109640.0,1.6956535]
[1752064783981,0.02735902,109650.0,109640.0,1.6956535]
[1752064784185,0.20975756,109650.0,109640.0,1.6956535]
[1752064784393,0.21887748,109650.0,109640.0,1.6956535]
[1752064785964,0.02735902,109650.0,109640.0,1.70477384]
[1752064786160,0.03647886,109650.0,109640.0,1.70477392]
[1752064786576,0.2188774,109650.0,109640.0,1.6956535]
[1752064786787,0.2188774,109650.0,109640.0,1.45578494]
[1752064786988,0.22799732,109650.0,109640.0,1.6956535]
[1752064787194,0.04559878,109650.0,109640.0,1.6956535]
[1752064787339,0.03647886,109650.0,109640.0,1.70477392]
[1752064787552,0.02735902,109650.0,109640.0,1.70477351]
[1752064787752,0.02735902,109650.0,109640.0,1.6865325]
[1752064788077,0.03647886,109650.0,109640.0,1.6865325]
[1752064788891,0.03647886,109650.0,109640.0,1.67741208]
[1752064789061,0.2188774,109650.0,109640.0,1.42842302]
[1752064789255,0.03647886,109650.0,109640.0,1.6865325]
[1752064790255,0.2188774,109650.0,109640.0,1.66829158]
[1752064790433,0.2188774,109650.0,109640.0,1.43754352]
[1752064790646,0.2188774,109650.0,109640.0,1.67741208]
[1752064790898,0.03647886,109650.0,109640.0,1.68654794]
[1752064791081,0.2188774,109650.0,109640.0,1.66818702]
[1752064791354,0.03647886,109650.0,109640.0,1.53562752]
[1752064791554,0.03647886,109650.0,109640.0,1.68642794]
[1752064794144,0.02735902,109650.0,109640.0,1.68642794]
[1752064794349,0.03647894,109650.0,109640.0,1.67730752]
[1752064794940,0.03647894,109650.0,109640.0,1.68642794]
[1752064795090,0.03647894,109650.0,109640.0,1.67730752]
[1752064795291,0.21887748,109650.0,109640.0,1.42831846]
[1752064795496,0.21887748,109650.0,109640.0,1.67730752]
[1752064795698,0.03647894,109650.0,109640.0,1.67730752]
[1752064796124,0.03647894,109650.0,109640.0,1.68642794]
[1752064796741,0.03647894,109650.0,109640.0,1.67730752]
[1752064797119,0.02735902,109650.0,109640.0,1.43743896]
[1752064797326,0.03647894,109650.0,109640.0,1.67730752]
[1752064797540,0.03647894,109650.0,109640.0,1.67230752]
[1752064798123,0.03647886,109650.0,109640.0,1.67230752]
[1752064798792,0.2188774,109650.0,109640.0,1.67230752]
[1752064799242,0.03647886,109650.0,109640.0,1.68142794]
[1752064799454,0.2188774,109650.0,109640.0,1.43243896]
[1752064799606,0.03647886,109650.0,109640.0,1.67230752]
[1752064800352,0.2188774,109650.0,109640.0,1.67230752]
[1752064800907,0.2188774,109650.0,109640.0,1.42331846]
[1752064801150,0.2188774,109650.0,109640.0,1.66318702]
[1752064802410,0.2188774,109650.0,109640.0,1.66318617]
[1752064802624,0.2188774,109650.0,109640.0,1.67230667]
[1752064802958,0.2188774,109650.0,109640.0,1.66318617]
[1752064803156,0.20975781,109650.0,109640.0,1.66318625]
[1752064803496,0.55782171,109650.0,109640.0,1.09010185]
[1752064803725,0.55782171,109650.0,109640.0,1.03575614]
[1752064803946,1.2291272,109650.0,109640.0,0.995]
[1752064804166,1.2291272,109650.0,109640.0,0.695]
[1752064805039,0.74939008,109650.0,109640.0,0.695]
[1752064805246,1.2291272,109650.0,109640.0,0.695]
[1752064806247,1.2301272,109650.0,109640.0,0.695]
[1752064806455,0.75039008,109650.0,109640.0,0.695]
[1752064806606,0.99025864,109650.0,109640.0,0.8366]
[1752064806807,0.99025864,109650.0,109640.0,0.695]
[1752064809868,0.99125864,109650.0,109640.0,0.695]
[1752064815840,0.75139008,109650.0,109640.0,0.695]
[1752064816376,0.99125864,109650.0,109640.0,0.695]
[1752064818342,0.75139008,109650.0,109640.0,0.695]
[1752064818548,0.99125864,109650.0,109640.0,0.695]
[1752064820152,0.75139008,109650.0,109640.0,0.695]
[1752064820370,1.13281864,109650.0,109640.0,0.695]
[1752064821028,0.89295008,109650.0,109640.0,0.695]
[1752064821332,1.13281864,109650.0,109640.0,0.695]
[1752064821748,0.89295008,109650.0,109640.0,0.695]
[1752064821957,1.13281864,109650.0,109640.0,0.695]
[1752064822165,1.04150363,109650.0,109640.0,0.83656]
[1752064822399,1.06260363,109650.0,109640.0,0.83656]
[1752064823717,1.30247219,109650.0,109640.0,0.695]
[1752064826322,0.82273507,109650.0,109640.0,0.695]
[1752064826631,1.39390912,109650.0,109640.0,0.695]
[1752064828011,1.42132512,109650.0,109640.0,0.695]
[1752064829354,1.42132512,109650.0,109640.0,0.71194857]
[1752064830089,1.42132512,109650.0,109640.0,0.695]
[1752064831519,1.51744512,109650.0,109640.0,0.695]
[1752064831766,1.42132512,109650.0,109640.0,0.71195417]
[1752064838385,1.41154348,109650.0,109640.0,0.71195417]
[1752064854810,1.41154348,109650.0,109640.0,0.71198118]
[1752064857181,1.41154348,109650.0,109640.0,0.7119821]
[1752064858146,1.41154348,109650.0,109640.0,0.695]
[1752064858779,1.41154348,109650.0,109640.0,0.71198247]
[1752064859506,1.41154348,109650.0,109640.0,0.71198336]
[1752064859508,1.45263162,109650.0,109640.0,0.71198336]
[1752064862008,0.83407757,109650.0,109640.0,0.71198336]
[1752064862218,1.27272655,109650.0,109640.0,0.71198336]
[1752064863094,1.27272655,109650.0,109640.0,0.71198262]
[1752064864190,1.27272655,109650.0,109640.0,0.71198221]
[1752064864631,1.27272655,109650.0,109640.0,0.68548221]
[1752064865064,1.36416348,109650.0,109640.0,0.68548221]
[1752064865476,1.33674748,109650.0,109640.0,0.71828221]
[1752064866348,0.85701036,109650.0,109640.0,0.71828221]
[1752064866562,1.33674748,109650.0,109640.0,0.71828221]
[1752064867020,1.33674748,109650.0,109640.0,0.68548221]
[1752064879727,1.33674748,109650.0,109640.0,0.68448221]
[1752064881964,1.36814748,109650.0,109640.0,0.68448221]
[1752064882175,1.40923562,109650.0,109640.0,0.68448221]
[1752064882956,1.43665162,109650.0,109640.0,0.68448221]
[1752064884165,1.74106102,109650.0,109640.0,0.68448221]
[1752064884969,1.69997288,109650.0,109640.0,0.03674766]
[1752064885180,1.69997288,109650.0,109630.0,0.00046654]
[1752064885181,0.23847661,109640.0,109630.0,0.00046654]
[1752064885318,0.68042982,109620.0,109610.0,0.0315]
[1752064885536,0.91306675,109620.0,109610.0,0.17284021]
[1752064885754,0.91306675,109620.0,109610.0,0.03164021]
[1752064886538,0.92228458,109620.0,109610.0,0.03164021]
[1752064886901,1.26328458,109620.0,109610.0,0.00014021]
[1752064887038,1.35472151,109620.0,109610.0,0.00014021]
[1752064888008,1.35572151,109620.0,109610.0,0.00014021]
[1752064888297,0.90229919,109620.0,109610.0,0.00014021]
[1752064888498,1.38203631,109620.0,109610.0,0.00014021]
[1752064888705,1.35672151,109620.0,109610.0,0.00014021]
[1752064889111,1.35572151,109620.0,109610.0,0.00014021]
[1752064889524,1.35772151,109620.0,109610.0,0.00014021]
[1752064889968,1.38514351,109620.0,109610.0,0.00014021]
[1752064890768,1.35772151,109620.0,109610.0,0.00014021]
[1752064890963,1.38514351,109620.0,109610.0,0.00014021]
[1752064891966,1.40064351,109620.0,109610.0,0.00014021]
[1752064892165,1.37322151,109620.0,109610.0,0.00014021]
[1752064892367,1.40064551,109620.0,109610.0,0.00014021]
[1752064893352,1.42771514,109620.0,109610.0,0.00014021]
[1752064893914,1.41221514,109620.0,109610.0,0.00014021]
[1752064895615,0.93247802,109620.0,109610.0,0.00014021]
[1752064895795,1.41221514,109620.0,109610.0,0.00014021]
[1752064896194,1.44531514,109620.0,109610.0,0.00014021]
[1752064896401,1.42871514,109620.0,109610.0,0.00014021]
[1752064896602,1.41221514,109620.0,109610.0,0.00014021]
[1752064896879,0.53158818,109610.0,109600.0,0.0319]
[1752064897059,0.02737599,109580.0,109570.0,0.48138435]
[1752064897297,0.02737599,109580.0,109570.0,0.59094101]
[1752064897507,0.03650174,109580.0,109570.0,0.59094109]
[1752064897770,0.03650174,109580.0,109570.0,0.62214117]
[1752064897953,0.03650174,109580.0,109570.0,0.6312675]
[1752064898446,0.03650174,109580.0,109570.0,0.6352675]
[1752064898660,0.02737599,109580.0,109570.0,0.6352675]
[1752064898829,0.03650165,109580.0,109570.0,0.6352675]
[1752064899207,0.03650165,109580.0,109570.0,0.64439375]
[1752064899433,0.02737599,109580.0,109570.0,0.6352675]
[1752064899634,0.03650165,109580.0,109570.0,0.59458838]
[1752064899836,0.03650165,109580.0,109570.0,0.60671463]
[1752064900050,0.02737599,109580.0,109570.0,0.61584071]